bitfinex-derivatives/quotes_ETHF0:USTF0_20251118
["timestamp","ask_amount","ask_price","bid_price","bid_amount"]
[1763451713134,8.1736316,3029.3,3028.8,0.1486]
[1763451713542,8.1736316,3029.3,3028.7,0.0355802]
[1763451713840,0.2286,3028.8,3028.7,0.0355802]
[1763451714045,0.0076316,3029.3,3028.8,0.1486]
[1763451714235,4.272,3029.2,3028.8,0.1486]
[1763451715239,4.272,3029.2,3028.7,0.0355802]
[1763451715743,0.2286,3028.8,3028.7,0.0355802]
[1763451716133,0.0076316,3029.3,3029.2,0.77113]
[1763451716333,0.0076316,3029.3,3029.2,0.2357]
[1763451717144,0.0076316,3029.3,3028.8,0.1486]
[1763451717339,0.0076316,3029.3,3028.7,0.0355802]
[1763451717647,0.0076316,3029.3,3029.1,0.225]
[1763451717835,2.597,3029.2,3029.1,0.225]
[1763451718443,0.0076316,3029.3,3029.2,0.225]
[1763451721034,0.0076316,3029.3,3028.8,0.1387]
[1763451721340,0.0076316,3029.3,3029.2,0.225]
[1763451722444,0.0076316,3029.3,3028.8,0.1387]
[1763451722641,0.0076316,3029.3,3028.9,0.84085221]
[1763451722946,0.0076316,3029.3,3028.8,0.1387]
[1763451723142,0.0076316,3029.3,3029.2,0.225]
[1763451723547,8.1706316,3029.3,3029.2,0.225]
[1763451724040,8.1706316,3029.3,3028.8,0.1387]
[1763451724242,8.1706316,3029.3,3028.9,0.84092786]
[1763451724433,8.1706316,3029.3,3028.8,0.1387]
[1763451724638,8.1706316,3029.3,3028.9,0.84086395]
[1763451724845,0.0076316,3029.3,3028.8,0.1387]
[1763451725045,2.232,3029.2,3029.1,0.225]
[1763451725643,2.232,3029.2,3028.8,0.1387]
[1763451725838,2.232,3029.2,3028.9,0.84076916]
[1763451726038,2.232,3029.2,3028.8,0.1387]
[1763451726238,2.232,3029.2,3028.9,0.84050383]
[1763451726443,2.232,3029.2,3028.8,0.1387]
[1763451726641,0.2417,3029.0,3028.7,0.00256219]
[1763451726839,5.3892635,3028.8,3026.0,6.08660107]
[1763451727047,4.46872249,3027.9,3027.0,0.1387]
[1763451727242,1.77409074,3028.7,3027.7,0.225]
[1763451727444,0.0049482,3027.8,3027.7,0.225]
[1763451727652,0.0049482,3027.8,3027.7,1.09336459]
[1763451727944,0.0049482,3027.8,3027.7,0.00396241]
[1763451728953,0.0049482,3027.8,3027.7,0.872327]
[1763451729543,0.0049482,3027.8,3027.7,1.097327]
[1763451729943,0.0049482,3027.8,3027.7,0.872327]
[1763451730145,0.0049482,3027.8,3027.7,0.00396241]
[1763451730839,0.0049482,3027.8,3027.7,0.872327]
[1763451731038,0.0049482,3027.8,3027.7,0.00396241]
[1763451731241,0.0049482,3027.8,3027.7,0.872327]
[1763451731449,0.0049482,3027.8,3027.7,0.00396241]
[1763451731649,0.0049482,3027.8,3027.7,0.872327]
[1763451731858,1.77409074,3028.5,3028.2,0.1387]
[1763451731859,1.18473284,3028.3,3028.2,0.1387]
[1763451732047,8.202,3028.5,3028.2,0.1387]
[1763451732251,1.18741624,3029.3,3028.8,0.1387]
[1763451732552,8.202,3029.2,3028.9,0.86836459]
[1763451732758,8.202,3029.2,3028.8,1.00706459]
[1763451733444,2.69463175,3028.9,3028.8,1.00706459]
[1763451733844,2.69463175,3028.9,3028.8,0.1387]
[1763451734443,10.89963175,3028.9,3028.8,0.1387]
[1763451734752,10.89963175,3028.9,3028.8,1.00706459]
[1763451734957,10.89963175,3028.9,3028.8,0.86836459]
[1763451735156,10.89963175,3028.9,3028.8,1.23206459]
[1763451735950,10.89963175,3028.9,3028.8,0.3637]
[1763451736258,10.89963175,3028.9,3028.8,0.1387]
[1763451737153,10.89963175,3028.9,3028.8,1.00706459]
[1763451738256,10.89963175,3028.9,3028.8,0.1387]
[1763451738749,10.89963175,3028.9,3028.8,1.00706459]
[1763451739256,10.89963175,3028.9,3028.8,0.1387]
[1763451739455,10.89963175,3028.9,3028.8,1.00706459]
[1763451740458,10.89963175,3028.9,3028.8,0.1387]
[1763451740657,10.89963175,3028.9,3028.2,0.1387]
[1763451740861,2.69463175,3028.3,3027.5,0.1387]
[1763451741056,2.69463175,3027.8,3027.5,0.1387]
[1763451741265,10.88863175,3027.8,3027.5,0.1387]
[1763451741751,10.88863175,3027.8,3026.4,0.2142]
[1763451741952,2.69463175,3027.3,3026.4,0.2142]
[1763451742151,3.87784084,3027.3,3026.4,0.2142]
[1763451742356,2.69463175,3027.3,3026.4,0.2142]
[1763451742557,2.69463175,3027.3,3027.2,0.3486]
[1763451742964,7.83563175,3027.3,3027.2,0.35157414]
[1763451744462,1.18320909,3027.6,3027.2,0.35157414]
[1763451744662,1.18815729,3027.7,3027.6,0.2142]
[1763451744963,9.37715729,3027.7,3027.6,0.2142]
[1763451748360,8.1939482,3027.7,3027.6,0.2142]
[1763451748867,0.0049482,3027.7,3027.6,0.2142]
[1763451749071,8.1909482,3027.7,3027.6,0.2142]
[1763451749268,9.37415729,3027.7,3027.6,0.2142]
[1763451749467,9.37220227,3027.7,3027.6,0.2142]
[1763451750465,0.0049482,3027.7,3027.6,0.2142]
[1763451750664,5.6149482,3027.7,3027.6,0.2142]
[1763451751367,5.6149482,3027.7,3027.5,0.201]
[1763451751566,0.73920342,3027.6,3027.5,0.201]
[1763451752874,6.65320342,3027.6,3027.5,0.5653]
[1763451753078,6.65320342,3027.6,3027.5,0.201]
[1763451754473,7.83445749,3027.6,3027.2,0.00297414]
[1763451754779,0.73920342,3027.5,3027.2,0.00297414]
[1763451755573,0.73920342,3027.5,3027.4,0.3643]
[1763451755775,8.91120342,3027.5,3027.2,0.00297414]
[1763451756083,8.172,3027.5,3027.4,0.3643]
[1763451756380,8.91267416,3027.5,3027.4,0.3643]
[1763451756775,8.91467416,3027.5,3027.4,0.3643]
[1763451757177,0.74067416,3027.5,3027.4,6.90005]
[1763451757373,0.0049482,3027.7,3027.4,6.90005]
[1763451757374,8.173,3027.6,3027.5,0.201]
[1763451757571,8.91367547,3027.6,3027.5,0.5653]
[1763451758374,0.74067547,3027.6,3027.5,0.5653]
[1763451758775,8.0130482,3027.7,3027.6,0.3643]
[1763451758981,6.9058482,3027.7,3027.6,0.3643]
[1763451759976,0.0049482,3028.0,3027.6,0.3643]
[1763451760283,8.17,3027.9,3027.8,0.3643]
[1763451760779,8.17,3027.9,3027.5,0.201]
[1763451760780,0.0049482,3028.0,3027.9,0.3643]
[1763451761080,8.1749482,3028.0,3027.9,0.3643]
[1763451761883,1.18125407,3028.4,3028.3,0.3643]
[1763451762077,1.18125407,3028.6,3028.5,0.201]
[1763451762278,10.55024158,3028.6,3028.5,0.201]
[1763451763176,11.73149565,3028.6,3028.5,0.201]
[1763451764082,10.55024158,3028.6,3028.5,0.201]
[1763451764283,11.73149565,3028.6,3028.5,0.201]
[1763451766288,1.18125407,3028.7,3028.6,0.3643]
[1763451766488,0.0049482,3028.9,3028.8,0.3643]
[1763451766690,8.1739482,3028.9,3028.5,0.201]
[1763451766990,2.38024158,3028.6,3028.5,0.201]
[1763451767185,8.1739482,3028.9,3028.5,0.73656]
[1763451767391,8.1739482,3028.9,3028.8,0.3643]
[1763451770288,8.1739482,3028.9,3028.5,0.201]
[1763451770687,0.7371862,3028.8,3028.5,0.201]
[1763451770887,0.7371862,3028.8,3028.7,0.3643]
[1763451771194,8.9051862,3028.8,3028.7,0.3643]
[1763451771489,0.7371862,3028.8,3028.7,0.3643]
[1763451771694,0.0049482,3028.9,3028.8,0.3643]
[1763451772099,0.74182347,3028.9,3028.8,0.3643]
[1763451772386,0.0049482,3028.9,3028.8,0.3643]
[1763451773695,0.0049482,3028.9,3028.8,0.40979001]
[1763451774885,0.0049482,3028.9,3028.8,0.04549001]
[1763451776393,0.0049482,3028.9,3028.8,0.40979001]
[1763451776594,0.0049482,3028.9,3028.8,0.04549001]
[1763451778196,0.0049482,3028.9,3028.8,0.40979001]
[1763451778392,8.1709482,3028.9,3028.8,0.40979001]
[1763451778594,8.9071462,3028.9,3028.8,0.40979001]
[1763451779999,0.7411462,3028.9,3028.8,0.40979001]
[1763451780396,0.0049482,3028.9,3028.8,0.40979001]
[1763451781992,0.0049482,3028.9,3028.8,0.04549001]
[1763451782190,6.0049482,3028.9,3028.5,0.201]
[1763451782404,2.38024158,3028.6,3028.5,0.201]
[1763451782601,8.90273079,3028.6,3028.5,0.201]
[1763451782806,0.73673079,3028.6,3028.5,0.201]
[1763451783002,8.90273079,3028.6,3028.5,0.201]
[1763451783304,11.28297237,3028.6,3028.5,0.201]
[1763451783600,17.28297237,3028.6,3028.0,0.201]
[1763451783798,1.91798486,3028.5,3028.0,0.201]
[1763451784191,1.91798486,3028.5,3028.4,0.3366]
[1763451784397,6.32473079,3028.5,3028.4,0.3366]
[1763451784597,0.73673079,3028.5,3028.4,0.3366]
[1763451784797,0.0049482,3028.9,3028.8,0.3366]
[1763451785102,0.74004539,3028.9,3028.5,0.1991]
[1763451785502,0.74004539,3028.9,3028.8,0.3366]
[1763451786807,0.0049482,3028.9,3028.8,0.3366]
[1763451787108,1.18393747,3029.3,3029.2,0.3366]
[1763451787296,1.91986706,3029.3,3029.2,0.3366]
[1763451787699,0.73861299,3029.3,3029.2,0.3366]
[1763451788101,0.73861299,3029.3,3029.2,0.38209001]
[1763451788604,0.0026834,3029.3,3029.2,0.38209001]
[1763451789006,0.0049482,3029.6,3029.5,0.5357]
[1763451789996,0.74459137,3029.6,3029.5,0.58423448]
[1763451790299,0.00887908,3029.6,3029.5,0.58423448]
[1763451793006,0.00887908,3029.6,3029.5,0.24763448]
[1763451793710,0.00887908,3029.6,3029.5,0.58423448]
[1763451793905,0.74459137,3029.6,3029.5,0.58423448]
[1763451794613,0.00887908,3029.6,3029.5,0.58423448]
[1763451794908,0.00887908,3029.6,3029.5,1.11961448]
[1763451795113,0.74459137,3029.6,3029.5,1.11961448]
[1763451795611,0.33296,3030.5,3030.4,0.3366]
[1763451795612,1.51421407,3030.5,3030.4,0.3366]
[1763451796198,2.71320158,3030.5,3030.4,0.04549001]
[1763451796615,12.06061293,3030.5,3030.4,0.04549001]
[1763451797103,8.49911728,3030.5,3030.4,0.38209001]
[1763451797816,8.49911728,3030.5,3030.4,0.04549001]
[1763451798402,0.33611728,3030.5,3030.4,0.40898018]
[1763451799007,0.33611728,3030.5,3030.4,0.07238018]
[1763451799311,0.33611728,3030.5,3029.5,0.20214447]
[1763451799312,6.33611728,3030.5,3029.5,0.20214447]
[1763451799610,2.38024158,3029.6,3029.5,0.20214447]
[1763451799909,8.162,3029.6,3029.5,0.52984447]
[1763451800115,2.38024158,3030.0,3029.8,0.3277]
[1763451800116,1.18349911,3030.0,3029.8,0.3277]
[1763451800405,8.045,3029.9,3029.5,0.20214447]
[1763451801614,9.22849911,3029.9,3029.5,0.20214447]
[1763451801820,8.045,3029.9,3029.5,0.20214447]
[1763451804814,9.22849911,3029.9,3029.5,0.20214447]
[1763451805108,1.18349911,3029.8,3029.5,0.00304447]
[1763451805313,3.56374069,3029.6,3029.5,0.00304447]
[1763451805617,2.38024158,3029.6,3029.5,4.447e-05]
[1763451806316,12.31649025,3029.6,3029.5,4.447e-05]
[1763451806617,2.38024158,3029.6,3029.5,0.20184447]
[1763451806913,10.54124158,3029.6,3029.5,0.20184447]
[1763451807907,10.54124158,3029.6,3029.5,4.447e-05]
[1763451808904,12.31649025,3029.6,3029.5,0.19554447]
[1763451809112,10.54124158,3029.6,3029.5,4.447e-05]
[1763451809323,12.31649025,3029.6,3029.5,4.447e-05]
[1763451810108,2.38024158,3029.6,3029.5,0.19554447]
[1763451810315,6.322,3029.6,3029.5,0.19554447]
[1763451810911,6.322,3029.6,3029.5,0.51734447]
[1763451811308,1.18423134,3029.9,3029.5,0.19554447]
[1763451811512,1.18423134,3030.0,3029.5,0.19554447]
[1763451811718,1.18423134,3029.9,3029.5,0.19554447]
[1763451813415,1.18423134,3029.8,3029.5,0.19554447]
[1763451814420,8.16,3029.7,3029.5,0.19554447]
[1763451815018,9.93524867,3029.7,3029.5,4.447e-05]
[1763451815213,8.16,3029.7,3029.5,4.447e-05]
[1763451817115,8.16,3029.7,3028.9,4.82e-05]
[1763451817314,8.16,3029.7,3027.5,0.73123]
[1763451817315,2.38024158,3029.0,3027.5,0.1955]
[1763451817614,2.38024158,3028.1,3027.5,0.1955]
[1763451817918,8.159,3028.1,3027.5,0.1955]
[1763451818218,8.16326517,3028.1,3028.0,0.20489684]
[1763451818819,0.00426517,3028.1,3028.0,0.52669684]
[1763451819013,8.16326517,3028.1,3028.0,0.20489684]
[1763451819421,0.00426517,3028.1,3028.0,0.52669684]
[1763451821821,1.18623995,3028.5,3028.4,0.3218]
[1763451822010,8.16,3028.8,3028.5,0.1955]
[1763451822724,1.18623995,3029.3,3029.0,0.1955]
[1763451822924,8.16,3029.2,3029.0,0.1955]
[1763451823121,8.16,3029.1,3029.0,0.1955]
[1763451826220,0.00309552,3029.3,3029.0,0.1955]
[1763451826727,4.985,3029.2,3029.1,0.3218]
[1763451827517,0.00309552,3029.3,3029.2,0.3218]
[1763451829222,8.1639482,3029.5,3029.4,0.3218]
[1763451830320,8.1671362,3029.5,3029.4,0.3218]
[1763451831836,8.1671362,3029.5,3029.0,0.1955]
[1763451832028,8.1671362,3029.5,3029.4,0.3218]
[1763451833230,8.1671362,3029.5,3029.0,0.73096]
[1763451833423,8.1671362,3029.5,3029.0,0.1955]
[1763451834318,9.35337615,3029.5,3029.0,0.1955]
[1763451834720,1.18623995,3029.4,3029.0,0.1955]
[1763451836430,8.157,3029.3,3029.0,0.1955]
[1763451840335,9.34323995,3029.3,3029.0,0.1955]
[1763451840735,1.18623995,3029.3,3029.0,0.1955]
[1763451841032,5.484,3029.2,3029.0,0.1955]
[1763451841622,1.18623995,3029.3,3029.0,0.1955]
[1763451841829,8.156,3029.1,3029.0,0.5173]
[1763451842832,1.18623995,3029.4,3029.2,0.2942]
[1763451843133,8.156,3029.3,3029.2,0.2942]
[1763451843729,8.156,3029.3,3029.0,0.1955]
[1763451843944,9.34223995,3029.3,3029.0,0.1955]
[1763451844733,8.69572997,3029.2,3028.8,0.0049482]
[1763451844937,1.77766318,3028.9,3028.8,0.0049482]
[1763451845232,1.77766318,3028.9,3027.7,0.53569]
[1763451845431,1.18500923,3028.5,3027.5,0.1955]
[1763451845637,1.18500923,3028.1,3028.0,0.00309684]
[1763451846030,9.34000923,3028.1,3028.0,0.17609684]
[1763451846231,8.155,3028.1,3028.0,0.17609684]
[1763451846431,1.18500923,3028.2,3028.0,0.17609684]
[1763451846633,8.155,3028.1,3028.0,0.47029684]
[1763451846847,1.18500923,3028.3,3028.0,0.47029684]
[1763451847031,8.155,3028.1,3028.0,0.47029684]
[1763451847532,8.155,3028.1,3028.0,0.17609684]
[1763451847738,8.155,3028.1,3028.0,0.47029684]
[1763451847938,1.77766318,3028.5,3028.0,0.47029684]
[1763451847939,1.18500923,3028.5,3028.0,0.47029684]
[1763451848141,1.18500923,3028.6,3028.5,0.173]
[1763451848527,1.18500923,3028.6,3028.5,0.4672]
[1763451848733,1.18500923,3028.9,3028.6,0.2942]
[1763451849240,9.34000923,3028.8,3028.5,0.173]
[1763451849743,1.18500923,3028.7,3028.5,0.173]
[1763451850535,1.18500923,3028.7,3028.0,0.17609684]
[1763451850735,1.18500923,3028.7,3028.5,0.173]
[1763451851241,1.18500923,3028.6,3028.0,0.17609684]
[1763451851738,1.18500923,3028.6,3028.5,0.173]
[1763451851935,9.34000923,3028.6,3028.5,0.173]
[1763451852237,9.34000923,3028.6,3028.0,0.17609684]
[1763451852448,1.18500923,3028.4,3028.0,0.17609684]
[1763451852739,1.18500923,3028.2,3028.0,0.17609684]
[1763451853335,1.18500923,3028.1,3028.0,0.00309684]
[1763451853635,2.69572997,3028.2,3028.0,0.00309684]
[1763451853636,4.47339315,3028.2,3028.0,0.00309684]
[1763451853828,8.155,3028.1,3028.0,0.17609684]
[1763451854029,8.155,3028.1,3028.0,0.00309684]
[1763451854437,8.155,3028.1,3028.0,0.17609684]
[1763451854636,9.33945329,3028.1,3028.0,0.17609684]
[1763451855326,1.18445329,3028.1,3028.0,0.47029684]
[1763451855527,8.155,3028.1,3028.0,0.47029684]
[1763451855729,1.18445329,3028.4,3028.0,0.47029684]
[1763451855937,5.333,3028.6,3028.0,0.17609684]
[1763451856140,6.51745329,3028.6,3028.0,0.17609684]
[1763451856842,1.18445329,3028.5,3028.0,0.17609684]
[1763451857231,1.18445329,3028.2,3028.0,0.17609684]
[1763451858134,1.18445329,3028.2,3028.0,0.00309684]
[1763451858640,1.18445329,3028.3,3028.0,0.17609684]
[1763451858840,1.18445329,3028.2,3028.0,0.17609684]
[1763451860644,2.9434279,3029.2,3028.1,0.2942]
[1763451860645,1.18445329,3028.3,3028.1,0.2942]
[1763451860945,7.997,3028.2,3028.0,0.17609684]
[1763451861849,8.155,3028.1,3028.0,0.47029684]
[1763451862147,1.18445329,3028.5,3028.0,0.47029684]
[1763451862333,1.77766318,3028.8,3028.5,0.173]
[1763451862531,1.1841775,3028.6,3028.5,0.173]
[1763451863245,8.154,3028.6,3028.5,0.173]
[1763451863848,9.33862588,3028.6,3028.5,0.173]
[1763451864047,8.154,3028.6,3028.0,0.17609684]
[1763451864246,9.33873247,3028.5,3028.0,0.17609684]
[1763451865344,8.154,3028.5,3028.0,0.17609684]
[1763451865735,1.18473247,3028.6,3028.0,0.17609684]
[1763451865736,1.18473247,3028.6,3028.5,0.173]
[1763451865938,5.297,3028.6,3028.5,0.173]
[1763451866343,6.48173247,3028.6,3028.5,0.173]
[1763451866742,5.297,3028.6,3028.5,0.173]
[1763451867951,2.9515641,3029.5,3028.7,0.256]
[1763451867952,9.33940072,3028.8,3028.7,0.256]
[1763451868150,1.18540072,3028.8,3028.7,0.256]
[1763451868450,9.33940072,3028.9,3028.8,0.256]
[1763451869151,1.18540072,3028.9,3028.8,0.256]
[1763451869750,1.18540072,3028.9,3028.5,0.173]
[1763451870352,1.18540072,3028.8,3028.5,0.173]
[1763451871154,9.33840072,3028.7,3028.5,0.173]
[1763451871447,8.153,3028.7,3028.5,0.173]
[1763451872056,9.33840072,3028.7,3028.5,0.173]
[1763451873343,9.33840072,3028.7,3028.6,0.2643]
[1763451873548,1.18540072,3028.7,3028.6,0.2643]
[1763451873753,9.33840072,3028.7,3028.6,0.2643]
[1763451874156,9.33740072,3028.7,3028.6,0.2643]
[1763451874344,8.152,3028.7,3028.6,0.2643]
[1763451874954,9.33740072,3028.9,3028.5,0.173]
[1763451877048,9.33740072,3028.9,3028.0,0.17609684]
[1763451877252,1.18540072,3028.5,3028.0,0.17609684]
[1763451877645,8.152,3028.9,3028.0,0.17609684]
[1763451877646,1.18540072,3028.4,3028.0,0.17609684]
[1763451879047,6.48840072,3028.4,3028.0,0.17609684]
[1763451881052,1.18540072,3028.3,3028.0,0.17609684]
[1763451881759,6.48840072,3028.4,3028.0,0.17609684]
[1763451882856,1.18540072,3028.3,3028.0,0.15649684]
[1763451883161,1.18540072,3028.1,3028.0,0.42079684]
[1763451884262,1.18540072,3028.1,3028.0,0.15649684]
[1763451886961,8.15,3028.2,3028.0,0.15649684]
[1763451886962,9.92766318,3028.2,3028.0,0.15649684]
[1763451887151,1.1873536,3028.1,3028.0,0.15649684]
[1763451887653,1.1873536,3028.1,3028.0,0.42079684]
[1763451889060,1.77766318,3028.3,3028.1,0.2643]
[1763451889364,1.18757027,3028.2,3028.1,0.2643]
[1763451890464,1.18757027,3028.2,3028.0,0.15649684]
[1763451891153,1.18757027,3028.2,3028.1,0.2643]
[1763451892773,1.18757027,3028.3,3028.2,0.2643]
[1763451893367,1.18757027,3028.3,3028.0,0.15649684]
[1763451894163,1.18757027,3028.3,3028.2,0.2643]
[1763451894367,1.18757027,3028.4,3028.3,0.2643]
[1763451894570,1.18757027,3028.5,3028.4,0.2643]
[1763451894959,1.77766318,3028.6,3028.4,0.2643]
[1763451895161,1.77766318,3028.6,3028.5,0.1534]
[1763451896060,6.0,3028.6,3028.0,0.15649684]
[1763451896260,5.142,3028.7,3028.0,0.00309684]
[1763451896261,3.56788399,3028.1,3028.0,0.00309684]
[1763451896567,2.38010433,3028.1,3028.0,0.15649684]
[1763451897070,2.38010433,3028.1,3028.0,0.00309684]
[1763451897471,4.16177382,3028.1,3027.0,0.173]
[1763451897660,1.18791174,3027.3,3027.0,0.173]
[1763451897975,1.18788055,3027.6,3027.5,0.1428]
[1763451898269,1.78186762,3027.7,3027.5,0.1428]
[1763451898474,1.78186762,3027.7,3027.5,0.14665881]
[1763451898475,1.18750616,3027.6,3027.5,0.14665881]
[1763451898664,1.18750616,3027.6,3027.5,0.39675881]
[1763451898862,7.69772813,3027.7,3027.5,0.14665881]
[1763451900673,0.41325108,3027.9,3027.8,0.2501]
[1763451900967,3.719,3029.2,3029.0,0.1428]
[1763451901166,2.38010433,3029.1,3028.5,0.1428]
[1763451901369,2.38010433,3028.7,3028.0,0.1428]
[1763451901959,2.38824644,3028.7,3028.0,0.1428]
[1763451902169,2.38824644,3028.7,3027.5,0.14665881]
[1763451902170,2.38010433,3028.3,3027.5,0.00385881]
[1763451902359,2.38010433,3027.6,3027.0,0.1428]
[1763451902560,1.78186762,3027.7,3027.5,0.1428]
[1763451902768,8.147,3027.9,3027.6,0.2501]
[1763451903160,8.147,3027.9,3027.8,0.2501]
[1763451903371,8.147,3027.9,3027.8,0.25377854]
[1763451903565,8.147,3027.9,3027.8,0.00367854]
[1763451906074,9.92886762,3027.9,3027.0,0.1428]
[1763451906275,1.58678182,3027.4,3027.0,0.1428]
[1763451906481,8.146,3027.8,3027.5,0.1428]
[1763451906482,1.58678182,3027.7,3027.5,0.1428]
[1763451906776,1.58678182,3027.6,3027.5,0.1428]
[1763451906961,1.58678182,3027.6,3027.5,0.14639757]
[1763451908173,1.58678182,3027.6,3027.5,0.39649757]
[1763451909372,1.78116501,3028.2,3028.1,0.2501]
[1763451909570,2.37247991,3028.6,3028.3,0.2501]
[1763451909571,1.58678182,3028.4,3028.3,0.2501]
[1763451909775,1.58678182,3028.4,3028.3,0.78569]
[1763451910075,1.58678182,3029.3,3029.2,0.2501]
[1763451910378,1.58678182,3029.3,3029.0,0.1428]
[1763451910875,4.15974876,3029.5,3029.0,0.1428]
[1763451911176,2.37858375,3029.1,3029.0,0.1428]
[1763451911473,2.37858375,3029.1,3028.0,0.1428]
[1763451911774,1.77903753,3029.1,3029.0,0.1428]
[1763451911974,6.835,3029.1,3029.0,0.1428]
[1763451912165,6.835,3029.1,3028.5,0.1428]
[1763451912366,2.37858375,3028.8,3028.5,0.1428]
[1763451912768,1.77903753,3028.7,3026.8,1.15316754]
[1763451912967,2.37858375,3028.1,3027.0,0.67861]
[1763451913174,6.456,3028.0,3027.0,0.1428]
[1763451913375,6.299,3027.9,3027.1,0.5358]
[1763451913679,6.299,3027.9,3027.2,0.53578]
[1763451913978,6.299,3027.9,3027.0,0.1428]
[1763451914383,6.299,3027.9,3027.4,0.53574]
[1763451914579,9.92303753,3028.2,3027.4,0.53574]
[1763451914877,9.92303753,3028.2,3027.1,0.5358]
[1763451915084,9.92303753,3028.2,3027.2,0.53578]
[1763451915373,1.77903753,3028.3,3027.0,0.1428]
[1763451915577,3.43,3028.3,3028.2,0.1428]
[1763451918780,8.144,3028.7,3028.2,0.1428]
[1763451920483,8.144,3028.7,3028.5,0.1489]
[1763451920689,1.77903753,3029.2,3029.0,0.1489]
[1763451920981,0.00378514,3029.3,3029.0,0.1489]
[1763451921781,2.37858375,3029.2,3029.0,0.1489]
[1763451922590,2.37858375,3029.2,3028.5,0.1489]
[1763451922778,2.37858375,3028.8,3028.2,0.1428]
[1763451923489,2.37858375,3028.8,3028.5,0.1489]
[1763451924391,4.15762128,3029.2,3028.5,0.1489]
[1763451924587,1.77903753,3029.2,3029.0,0.1489]
[1763451924788,8.142,3029.1,3029.0,0.1489]
[1763451925578,0.00378514,3029.3,3029.0,0.1489]
[1763451925785,8.14478514,3029.3,3029.0,0.1489]
[1763451926387,0.00378514,3029.3,3029.2,0.2637]
[1763451926584,0.00378514,3029.3,3029.2,0.79913]
[1763451927092,0.00378514,3029.3,3029.2,0.2637]
[1763451927494,0.00378514,3029.3,3029.2,0.79913]
[1763451928893,0.00378514,3029.3,3029.2,0.2637]
[1763451929194,0.00378514,3029.3,3029.2,0.79913]
[1763451932701,0.00378514,3029.3,3029.2,0.2637]
[1763451932991,0.00378514,3029.3,3029.2,0.77723]
[1763451933196,0.00378514,3029.3,3029.2,0.2418]
[1763451935295,0.00378514,3029.3,3028.5,0.1489]
[1763451935598,2.37858375,3028.9,3027.3,0.53576]
[1763451935892,1.18222721,3028.7,3027.6,0.53571]
[1763451936091,1.18222721,3028.7,3027.0,0.1494]
[1763451936092,3.43,3028.7,3028.5,0.1494]
[1763451936399,3.43,3028.7,3027.5,0.14639757]
[1763451936698,4.61222721,3028.7,3027.7,0.53569]
[1763451936997,4.61222721,3028.7,3027.6,0.53571]
[1763451937194,4.61222721,3028.7,3027.9,0.53565]
[1763451937401,8.137,3028.6,3028.5,0.1494]
[1763451937694,10.51558375,3028.8,3028.5,0.1494]
[1763451938798,11.69781096,3028.8,3027.5,0.14639757]
[1763451939098,1.18222721,3028.7,3027.5,0.14639757]
[1763451939700,2.37858375,3028.4,3027.5,0.14639757]
[1763451942304,1.18222721,3028.6,3028.5,0.1494]
[1763451942497,1.18222721,3028.7,3028.5,0.1494]
[1763451944196,1.18222721,3028.6,3028.0,0.1494]
[1763451944600,1.18222721,3028.6,3028.5,0.1494]
[1763451944999,1.18222721,3028.6,3028.0,0.1494]
[1763451948414,1.18222721,3028.6,3028.5,0.1494]
[1763451949310,9.31822721,3028.6,3028.5,0.1494]
[1763451949806,1.18222721,3028.9,3028.8,0.2418]
[1763451950008,1.77903753,3029.1,3028.5,0.1494]
[1763451950009,7.201,3029.1,3029.0,0.1494]
[1763451950907,0.00378514,3029.3,3029.2,0.2418]
[1763451952111,0.0049482,3029.5,3029.4,0.2418]
[1763451953215,0.00826583,3029.5,3029.4,0.2418]
[1763451953913,0.33296,3030.5,3030.0,0.1494]
[1763451954110,6.901,3030.4,3030.0,0.1494]
[1763451954903,6.90434145,3030.4,3030.0,0.15314536]
[1763451956702,6.90434145,3030.4,3030.3,0.2418]
[1763451957611,6.90434145,3030.4,3030.0,0.15314536]
[1763451958408,0.00334145,3030.4,3030.3,0.2311]
[1763451963316,0.00334145,3030.4,3030.0,0.15314536]
[1763451963514,2.70079219,3030.4,3030.0,0.15314536]
[1763451964821,2.70079219,3030.4,3028.5,0.1494]
[1763451965016,1.18556866,3030.4,3028.5,0.1494]
[1763451965318,0.00334145,3030.4,3030.0,0.1402]
[1763451965529,0.00334145,3030.4,3030.3,0.2311]
[1763451965821,0.00334145,3030.4,3030.3,0.0041]
[1763451966219,0.00334145,3030.4,3030.3,0.2352]
[1763451967819,8.128,3031.0,3030.9,0.2311]
[1763451968416,2.69745074,3032.1,3031.5,0.1402]
[1763451968725,8.128,3032.0,3031.5,0.1402]
[1763451968924,8.13039538,3032.0,3031.5,0.1402]
[1763451969220,8.13039538,3032.0,3031.9,0.2311]
[1763451970018,0.00239538,3032.0,3031.9,0.2311]
[1763451972817,0.0049482,3032.1,3032.0,0.3713]
[1763451973326,1.642,3033.0,3032.1,0.53492]
[1763451974016,1.6444343,3033.0,3032.1,0.53492]
[1763451974424,0.0049482,3032.9,3032.5,0.1402]
[1763451974718,0.0049482,3032.9,3032.5,0.14296514]
[1763451974918,0.0049482,3032.9,3032.5,0.00276514]
[1763451975230,2.69745074,3032.6,3032.5,0.00276514]
[1763451975419,0.0049482,3032.9,3032.5,0.14296514]
[1763451975727,0.0049482,3032.9,3032.5,0.00276514]
[1763451975925,2.69745074,3032.6,3031.5,0.1402]
[1763451976524,2.69745074,3032.1,3031.5,0.1402]
[1763451976724,3.479,3032.0,3031.4,0.0049482]
[1763451977029,3.479,3032.0,3031.5,0.1402]
[1763451979325,4.66122721,3032.0,3031.5,0.1402]
[1763451979530,3.479,3032.0,3031.5,0.1402]
[1763451980030,8.122,3031.9,3031.5,0.1402]
[1763451981829,8.122,3031.9,3031.8,0.244]
[1763451982027,1.18222721,3032.1,3032.0,0.1355]
[1763451982230,9.90003753,3032.2,3032.0,0.1355]
[1763451982530,9.30058974,3032.4,3032.0,0.1355]
[1763451982716,1.17958974,3032.3,3032.0,0.1355]
[1763451983122,1.17958974,3032.2,3031.5,0.1402]
[1763451984027,1.17958974,3032.3,3031.5,0.1402]
[1763451984235,1.17958974,3032.2,3031.5,0.1402]
[1763451984829,1.17958974,3032.1,3031.5,0.1402]
[1763451985024,3.87704048,3032.1,3031.5,0.1402]
[1763451985230,1.17958974,3031.9,3031.5,0.1402]